Cogmind - Beta 15 @@@ ROGUE MODE // 2025.10.16 @ 01:32:44 Player: UberDoot Result: Core destroyed Performance ------------- Evolutions (5) 2500 Regions Visited (15) 3000 Robots Destroyed (287) 1435 Value Destroyed (13082) 13082 Prototype IDs (17) 340 Alien Tech Used (0) 0 Bonus (5217) 5217 TOTAL SCORE: 25574 Bonus ------- High Alert Combat Kills 1285 Follower Combat Kills 332 Entered Garrisons 800 Used RIF Installer 2000 Met Zhirov 300 Met R17 at Cetus 500 Cogmind --------- Core Integrity 0/1000 Matter 300/300 Energy 350/350 System Corruption 10% Temperature Cool (0) Movement Treading (160) Location -5/Archives Parts ------- > --- POWER (2) -------- Quantum Reactor > --- PROPULSION (4) --- Centrium Heavy Treads Centrium Heavy Treads > --- UTILITY (8) ------ Advanced Heat Sink Advanced Heat Sink Huge Storage Unit Improved Signal Interpreter Targeting Computer Centrium Medium Armor Plating Centrium Medium Armor Plating > --- WEAPON (3) ------- Advanced Variable Charge Gun KE Penetrator Advanced KE Penetrator > --- INVENTORY (25) --- Centrium Heavy Treads Carbon-fiber Leg Advanced Heat Sink Advanced Heat Sink Advanced Heat Sink Advanced Heat Sink Advanced Heat Sink Advanced Heat Sink Advanced Heat Sink Matter Compressor (250) Centrium Medium Armor Plating Centrium Medium Armor Plating Hacking Suite High-powered Tractor Beam Improved Recalibrator Advanced Variable Charge Gun Advanced Variable Charge Gun Advanced Variable Charge Gun Heavy Plasma Cannon Advanced KE Penetrator Advanced KE Penetrator Advanced KE Penetrator Advanced KE Penetrator Great Maul Peak State ------------ > --- POWER ------------ Quantum Reactor > --- PROPULSION ------- Centrium Heavy Treads Centrium Heavy Treads > --- UTILITY ---------- Advanced Heat Sink Advanced Heat Sink Huge Storage Unit Improved Signal Interpreter Targeting Computer Centrium Medium Armor Plating Centrium Medium Armor Plating > --- WEAPON ----------- Advanced Variable Charge Gun KE Penetrator Advanced KE Penetrator > --- INVENTORY -------- Centrium Heavy Treads Carbon-fiber Leg Advanced Heat Sink Advanced Heat Sink Advanced Heat Sink Advanced Heat Sink Advanced Heat Sink Advanced Heat Sink Advanced Heat Sink Matter Compressor Centrium Medium Armor Plating Centrium Medium Armor Plating Hacking Suite High-powered Tractor Beam Improved Recalibrator Advanced Variable Charge Gun Advanced Variable Charge Gun Advanced Variable Charge Gun Heavy Plasma Cannon Advanced KE Penetrator Advanced KE Penetrator Advanced KE Penetrator Advanced KE Penetrator Great Maul [Rating: 115] Favorites ----------- Power Improved Deuterium Engine Engine Improved Deuterium Engine Power Core Neutrino Core Reactor Quantum Reactor Propulsion Light Treads Treads Light Treads Leg Aluminum Leg Wheel Armored Wheel Hover Unit Backup Propulsion III Utility High-capacity Storage Unit Device Advanced Heat Sink Storage High-capacity Storage Unit Processor Core Analyzer Hackware Relay Coupler [Grunt] Protection Improved Medium Armor Plating Weapon Heavy Assault Rifle Energy Gun Heavy Particle Gun Energy Cannon Heavy Plasma Cannon Ballistic Gun Heavy Assault Rifle Ballistic Cannon Mass Driver Launcher Mini Grenade Launcher Special Weapon Remote Datajack Impact Weapon Great Maul Slashing Weapon Phasing Sabre Build | -11 -10 -9 -8 -8 -8 -8 -7 -7 -7 -7 -6 -5 -5 -5 -5 ------- Run | Yrd Mat Mat Mat Gar Mat Gar Fac Gar Fac Gar Fac Fac Ext Cet Arc Slots Evolved 10 | . . 2 2 . . . 2 . . . 2 2 . . . Power 1 | . . . . . . . . . . . . 1 . . . Propulsion 2 | . . 1 . . . . 1 . . . . . . . . Utility 6 | . . . 2 . . . 1 . . . 2 1 . . . Weapon 1 | . . 1 . . . . . . . . . . . . . Parts Attached 230 | 7 15 20 16 15 10 8 9 4 5 17 24 14 46 20 . Power 24 | 1 3 2 1 1 1 . 1 . 1 . 2 2 6 3 . Engine 14 | 1 3 2 . 1 1 . 1 . 1 . 1 1 2 . . Core 8 | . . . 1 . . . . . . . 1 1 4 1 . Reactor 2 | . . . . . . . . . . . . . . 2 . Propulsion 65 | 2 3 8 7 3 3 2 3 . 1 3 5 3 16 6 . Treads 42 | . 2 8 6 3 3 1 3 . . 3 1 . 9 3 . Leg 7 | 2 1 . . . . . . . . . . . 2 2 . Wheel 13 | . . . 1 . . 1 . . 1 . 4 . 5 1 . Hover 3 | . . . . . . . . . . . . 3 . . . Flight . | . . . . . . . . . . . . . . . . Utility 73 | 2 4 2 5 8 2 2 4 3 2 6 9 6 13 5 . Device 34 | 1 3 1 3 4 2 2 . 1 . 2 4 1 7 3 . Storage 8 | 1 1 1 1 . . . . . 1 . . 1 2 . . Processor 8 | . . . . 2 . . 1 . . . 1 3 1 . . Hackware 13 | . . . 1 . . . 1 2 1 4 3 1 . . . Protection 10 | . . . . 2 . . 2 . . . 1 . 3 2 . Artifact . | . . . . . . . . . . . . . . . . Weapon 68 | 2 5 8 3 3 4 4 1 1 1 8 8 3 11 6 . Energy Gun 18 | . 2 . 1 . 3 2 . . . 2 3 . 2 3 . Energy Cannon 5 | . . . . . . . . . . . 2 1 1 1 . Ballistic Gun 32 | 2 2 7 2 1 1 2 . 1 . 4 2 . 6 2 . Ballistic Cannon 3 | . . . . . . . . . 1 . . 2 . . . Launcher 2 | . . 1 . 1 . . . . . . . . . . . Special Weapon 3 | . . . . . . . 1 . . 2 . . . . . Impact Weapon 3 | . 1 . . 1 . . . . . . 1 . . . . Slashing Weapon 2 | . . . . . . . . . . . . . 2 . . Piercing Weapon . | . . . . . . . . . . . . . . . . Special Melee Weapon . | . . . . . . . . . . . . . . . . Unidentified Prototypes 12 | . . 2 1 . . . . . 2 . 3 . . 4 . Corrupted Parts 2 | . . . . . . . . . . . . . . 2 . System Corruption 9 | . . . . . . . . . . . . . . 9 . Parts Lost 76 | . 1 1 2 2 2 4 . . . 6 17 4 19 18 . Power 14 | . . 1 . . 1 . . . . 1 3 1 2 5 . Propulsion 29 | . . . . . 1 2 . . . 2 6 1 11 6 . Utility 22 | . 1 . 2 2 . 2 . . . 1 4 1 5 4 . Weapon 11 | . . . . . . . . . . 2 4 1 1 3 . Highest Loss Streak 13 | . 1 1 2 1 2 3 . . . 3 11 1 4 13 . To Critical Strikes 3 | . . . . . . . . . . . . . . 3 . Average Backups 18 | 5 7 13 18 19 19 19 19 19 23 24 23 8 18 21 24 Power 1 | . . . 1 1 . 1 1 1 1 1 . 1 3 . . Propulsion 3 | 3 2 2 6 6 5 4 3 3 5 3 5 . 1 3 2 Utility 6 | . 2 4 4 4 6 5 7 8 9 10 8 3 6 10 13 Weapon 6 | . 2 5 7 7 6 6 6 6 6 7 8 3 7 7 9 Tool/Special . | . . . . . . . . . . . . . . . . Unused Backups 80 | 2 6 7 3 5 3 3 2 8 . 3 13 . 6 1 18 Power 5 | . 1 1 . 2 . . 1 . . . . . . . . Propulsion 8 | 1 1 1 . . . . . . . . 2 . 2 1 . Utility 33 | 1 1 2 . 1 1 2 1 7 . 1 5 . . . 11 Weapon 32 | . 3 3 3 2 2 . . 1 . 2 6 . 3 . 7 Tool/Special 2 | . . . . . . 1 . . . . . . 1 . . Average Slot Usage (%) 94 | . 99 98 98 99 99 96 99 99 100 92 89 63 94 86 76 Engine 6 | . 13 10 7 7 9 9 7 7 7 7 2 1 1 . . Core 2 | . . . 1 1 . . . . . . 2 2 8 3 . Treads 17 | . 6 32 24 18 19 19 29 30 16 18 10 . 14 8 11 Leg 2 | . 21 . . . . . . . . . . . 2 2 . Wheel 3 | . . . 2 9 7 6 . . 13 5 9 . 2 1 . Device 10 | . 13 11 17 8 9 14 9 6 7 7 8 5 13 19 11 Storage 7 | . 14 11 9 9 9 9 7 7 7 7 5 3 5 5 5 Processor 10 | . . . . 13 18 10 14 15 15 15 12 11 12 11 11 Hackware 4 | . . . 8 . . . 1 4 2 5 10 15 5 . . Protection 2 | . . . . 4 . . 3 2 4 1 5 . 5 6 11 Energy Gun 5 | . 3 3 4 2 16 19 7 7 7 5 5 . 2 8 5 Ballistic Gun 13 | . 24 28 22 19 7 7 14 7 8 12 4 . 10 7 11 Impact Weapon 1 | . . . . 4 2 . . 2 4 1 1 2 . . . Peak Build Rating 115 | 8 12 20 32 30 32 33 39 41 43 53 62 68 75 115 115 Average Rating 42 | 6 9 17 28 27 30 31 33 38 41 49 52 49 67 98 115 On Entrance 36 | . 8 12 20 32 29 31 31 38 39 42 52 15 48 66 115 Naked Turns . | . . . . . . . . . . . . . . . . Heaviest Build 140 | 11 22 42 63 62 63 65 73 73 113 111 116 56 91 140 132 Greatest Support 160 | 20 40 63 63 40 60 60 88 88 88 114 114 36 93 160 160 Greatest Overweight (x) 9 | . . . 5 5 5 5 . . 4 3 9 2 7 8 . Average Overweight (x) 1 | . . . 1 4 3 3 . . 3 . 2 . 1 1 . Largest Inventory Capacity 25 | 8 10 15 20 20 20 20 20 20 25 25 25 15 20 25 25 Average Capacity 19 | 7 8 14 19 20 20 20 20 20 24 25 23 12 19 23 25 Most Carried 25 | 8 10 15 20 20 20 20 20 20 25 25 25 15 20 25 25 Average Carried 18 | 5 7 13 18 19 19 19 19 19 23 24 23 8 18 21 25 Final Capacity 25 | 8 10 15 20 20 20 20 20 20 25 25 5 15 20 25 25 Final Carried 25 | 8 10 15 20 20 18 20 20 20 25 25 5 15 20 25 25 Class Distribution -------------------- 21% | Scavenger-Gunner 15% | Mutant 13% | Scavenger-Tank 10% | Scavenger-Skirmisher 9% | Scavenger-Mutant 7% | Bothacker-Mutant 7% | Bothacker-Tank 5% | Tank 4% | Bothacker-Gunner 3% | Gunner Dominant Class ---------------- Mutant | -10/Materials Scavenger-Tank | -9/Materials Tank | -8/Materials Scavenger-Mutant | -8/Garrison Scavenger-Gunner | -8/Materials Scavenger-Gunner | -8/Garrison Scavenger-Gunner | -7/Factory Scavenger-Gunner | -7/Garrison Bothacker-Mutant | -7/Factory Bothacker-Tank | -7/Garrison Bothacker-Tank | -6/Factory Mutant | -5/Factory Scavenger-Skirmisher | -5/Extension Scavenger-Tank | -5/Cetus Scavenger-Tank | -5/Archives Resources | -11 -10 -9 -8 -8 -8 -8 -7 -7 -7 -7 -6 -5 -5 -5 -5 ----------- Run | Yrd Mat Mat Mat Gar Mat Gar Fac Gar Fac Gar Fac Fac Ext Cet Arc Matter Collected 9136 | 306 389 943 658 864 575 363 215 510 90 1303 660 212 1531 517 . Remotely . | . . . . . . . . . . . . . . . . Salvage Created 11585 | 125 527 1316 785 962 635 436 366 712 81 1059 1634 386 1931 630 . Parts 648 | 13 36 95 54 85 16 32 15 32 8 52 80 27 76 27 . Haulers Intercepted 6 | . 1 2 1 . 1 . . . . . 1 . . . . Recyclers Shooed 6 | . 1 . . . . . . . . . 3 . 2 . . Parts Field Recycled . | . . . . . . . . . . . . . . . . Retrieved Matter . | . . . . . . . . . . . . . . . . Parts Self-Destructed . | . . . . . . . . . . . . . . . . Prevented . | . . . . . . . . . . . . . . . . Kills | -11 -10 -9 -8 -8 -8 -8 -7 -7 -7 -7 -6 -5 -5 -5 -5 ------- Run | Yrd Mat Mat Mat Gar Mat Gar Fac Gar Fac Gar Fac Fac Ext Cet Arc Combat Hostiles Destroyed 229 | . 12 24 16 36 10 18 7 12 2 29 23 8 24 8 . Melee 3 | . . . . . . . . . . . . . 3 . . Guns 181 | . 12 21 16 26 10 10 7 11 2 25 14 . 19 8 . Cannons 11 | . . . . . . . . . . . 7 3 1 . . AOE 31 | . . 3 . 10 . 8 . . . 4 2 4 . . . Classes Destroyed 19 | 2 5 3 1 2 1 2 . . . 1 2 . . . . Worker 10 | . 2 4 . . . . . . . . 1 2 1 . . Builder 8 | . . . . . 1 . . . . . 3 3 1 . . Tunneler 4 | 3 . 1 . . . . . . . . . . . . . Hauler 6 | . 1 2 1 . 1 . . . . . 1 . . . . Recycler 11 | 1 . 3 . . 2 . . . . . 2 . 3 . . Mechanic 1 | . . 1 . . . . . . . . . . . . . Operator 2 | . . 1 . . . . . . . . . . 1 . . Watcher 13 | . 2 4 1 . . . . . . . . 2 2 2 . Swarmer 59 | . 3 8 3 21 2 7 . . . 10 3 . 2 . . Cutter 2 | . . . . . . 2 . . . . . . . . . Saboteur 1 | . . . . . . . . . . . 1 . . . . Grunt 99 | . 9 11 6 6 7 6 5 8 1 14 10 2 14 . . Brawler 5 | . . . 1 1 . . 1 . . . 2 . . . . Duelist 2 | . . . . 1 . . . . . . 1 . . . . Sentry 32 | . . 5 6 5 1 1 1 2 . . 3 2 6 . . Specialist 2 | . . . . 2 . . . . . . . . . . . Hunter 6 | . . . . . . . . . . 2 1 2 1 . . Programmer 14 | . . . . . . 2 . 4 1 3 2 2 . . . Behemoth 2 | . . . . . . . . . . . 1 . 1 . . Cetus Guard 8 | . . . . . . . . . . . . . . 8 . Best Kill Streak 13 | 2 4 13 4 8 5 7 3 4 1 7 5 10 6 4 . Combat Bots Only 8 | . 4 7 4 8 4 7 3 4 1 7 3 4 3 4 . Max Kills in Single Turn 4 | 1 2 4 1 4 1 3 1 1 1 2 2 3 2 1 . Gunslinging 1 | . 1 . . 1 . . . . . 1 1 . . . . Exploded 4 | . . 2 . 4 . 3 . . . 2 2 2 . . . Melee 1 | . . . . . . . . . . . . . 1 . . Uniques/NPCs Destroyed . | . . . . . . . . . . . . . . . . Combat | -11 -10 -9 -8 -8 -8 -8 -7 -7 -7 -7 -6 -5 -5 -5 -5 -------- Run | Yrd Mat Mat Mat Gar Mat Gar Fac Gar Fac Gar Fac Fac Ext Cet Arc Hostile Shots Fired 1515 | . 50 101 85 113 54 67 33 58 12 196 343 57 200 140 6 Missed 436 | . 13 36 18 34 8 17 18 19 6 59 107 20 49 29 3 Hits 1079 | . 37 65 67 79 46 50 15 39 6 137 236 37 151 111 3 Melee 19 | . . . 5 . . 11 . . . . 3 . . . . Projectile 1060 | . 37 65 62 79 46 39 15 39 6 137 233 37 151 111 3 AOE 2 | . . . . . . 2 . . . . . . . . . Critical Strikes 65 | . 1 2 2 2 2 7 1 3 . 4 5 2 14 20 . Part Disruptions 1 | . . . . . . . . . . . 1 . . . . Damage Taken 16997 | . 443 782 919 967 623 688 99 488 80 1571 3037 883 3144 3010 263 Core 2479 | . 96 89 98 107 115 42 6 40 12 169 704 282 503 164 52 Absorbed by Shields 1344 | . . 100 96 136 48 120 60 76 12 504 192 . . . . Reduced by Siege Mode 142 | . . . . . . . . . . 7 . . . 135 . Ignored by Resistances 100 | . . . . . . . . . . . . . 100 . . Regen/Repaired (Parts) 576 | . 52 160 18 . . . . . . . 346 . . . . Core Remaining (%) 59 | 100 61 77 . . . 34 . . . 67 17 . . . . Volleys Fired 721 | 18 56 65 47 47 29 37 18 51 11 84 81 47 88 42 . Largest 3 | 2 2 3 3 3 3 3 3 3 3 3 3 2 3 3 . Hottest 210 | 40 60 102 101 101 165 165 101 106 106 133 210 137 205 189 . Shots Fired 1756 | 36 111 189 144 136 86 85 46 113 21 204 175 54 242 114 . Gun 1553 | 36 111 186 144 122 85 76 42 102 15 188 114 . 222 110 . Cannon 128 | . . . . . . . . . . . 50 54 20 4 . Launcher 32 | . . 3 . 14 1 9 . 1 . 2 2 . . . . Special 43 | . . . . . . . 4 10 6 14 9 . . . . Kinetic 1111 | 36 98 165 122 99 11 16 28 61 10 125 55 19 196 70 . Thermal 566 | . 13 21 22 23 74 60 14 41 5 63 109 35 46 40 . Explosive 32 | . . 3 . 14 1 9 . 1 . 2 2 . . . . Electromagnetic 4 | . . . . . . . . . . . . . . 4 . Robot Hit Streak 22 | 7 9 16 19 21 9 8 9 14 5 22 15 8 16 21 . Robot Miss Streak 7 | 6 5 4 5 3 2 6 2 7 3 4 4 3 3 3 . Penetration Max 2 | . . . . 1 . . . . . . 2 . 1 1 . Secondary Targets 34 | . 2 4 3 6 1 3 1 1 . 4 3 . 4 2 . Max Gunslinging Chain 1 | . 1 1 1 1 1 1 1 1 . 1 1 . 1 1 . Shots Hit Robots 1133 | 20 62 121 88 76 59 31 32 80 15 135 120 27 176 91 . Core Hits 574 | 7 31 56 38 55 22 27 17 45 6 71 65 24 70 40 . Critical Kills 4 | . . . 1 1 . . . . . . . . 2 . . Critical Parts Destroyed 8 | . . 1 . . . . . 1 . 1 1 1 1 2 . Critical Strikes 28 | . . 2 1 2 3 . . 1 . 4 4 2 6 3 . Burn 10 | . . 1 . 1 3 . . . . 3 2 . . . . Meltdown 1 | . . . . . . . . . . . . . 1 . . Destroy 12 | . . 1 1 1 . . . . . 1 2 . 3 3 . Blast 1 | . . . . . . . . . . . . 1 . . . Smash 2 | . . . . . . . . 1 . . . 1 . . . Sever 2 | . . . . . . . . . . . . . 2 . . Melee Attacks 104 | . 2 . 2 29 1 . . 17 7 6 5 14 21 . . Impact 83 | . 2 . 2 29 1 . . 17 7 6 5 14 . . . Slashing 21 | . . . . . . . . . . . . . 21 . . Piercing . | . . . . . . . . . . . . . . . . Sneak Attacks 4 | . . . . . . . . 2 . . . . 2 . . Combat Hostiles 1 | . . . . . . . . . . . . . 1 . . Follow-up Attacks 1 | . . . . . . . . . . . . . 1 . . Damage Inflicted 26682 | 162 759 2411 1393 2191 1218 1347 478 1576 174 2473 3382 2075 4721 2322 . Guns 18859 | 162 759 1828 1366 1293 1146 584 478 1337 174 2202 1948 . 3346 2236 . Cannons 2665 | . . . . . . . . . . . 1249 847 483 86 . Explosions 3882 | . . 583 . 894 21 763 . . . 263 185 1099 74 . . Melee 1193 | . . . . . 39 . . 239 . . . 129 786 . . Ramming 83 | . . . 27 4 12 . . . . 8 . . 32 . . Kinetic 13006 | 162 682 1610 1129 1000 130 63 257 773 91 1382 883 528 2890 1426 . Thermal 8506 | . 77 218 237 293 1016 521 221 564 83 820 2314 319 1013 810 . Explosive 3808 | . . 583 . 894 21 763 . . . 263 185 1099 . . . Electromagnetic 86 | . . . . . . . . . . . . . . 86 . Impact 407 | . . . . . 39 . . 239 . . . 129 . . . Slashing 786 | . . . . . . . . . . . . . 786 . . Piercing . | . . . . . . . . . . . . . . . . Highest Corruption 10 | . 2 . 5 5 5 9 . 3 4 6 4 . . 10 10 Average Corruption 4 | . 2 . 5 5 5 8 . 1 3 5 3 . . 6 10 Corruption Purged . | . . . . . . . . . . . . . . . . Corruption Blocked . | . . . . . . . . . . . . . . . . Effects 208 | . 8 . 14 61 12 24 . 11 6 48 1 . . 21 2 Message Errors 57 | . 4 . 2 20 3 3 . 7 1 10 1 . . 5 1 Matter Fused 58 | . 2 . 4 15 2 8 . 3 1 17 . . . 6 . Heat Flow Errors 23 | . . . 1 6 1 2 . . 1 7 . . . 4 1 Energy Discharges 18 | . 2 . . 5 . 2 . . 2 5 . . . 2 . Parts Rejected 2 | . . . 1 . 1 . . . . . . . . . . Parts Fused 1 | . . . . 1 . . . . . . . . . . . Data Loss (minor) 22 | . . . 2 7 4 3 . . 1 5 . . . . . Data Loss (major) 6 | . . . 1 3 . . . . . . . . . 2 . Misfires 12 | . . . 3 3 . 3 . 1 . 2 . . . . . Alerts 2 | . . . . . . 1 . . . 1 . . . . . Weapon Failures 7 | . . . . 1 1 2 . . . 1 . . . 2 . Overload Shots . | . . . . . . . . . . . . . . . . Overflow Damage 522 | . . 100 12 . . 15 . 139 . 13 1 127 115 . . Projectiles 4 | . . . . . . . . . . . 1 . 3 . . Explosions 266 | . . 100 . . . 15 . . . 13 . 94 44 . . Melee 252 | . . . 12 . . . . 139 . . . 33 68 . . Knockbacks 7 | . . . 1 . . . . 1 . . . 4 1 . . Impact 4 | . . . 1 . . . . 1 . . . 1 1 . . Kinetic 3 | . . . . . . . . . . . . 3 . . . Secondary . | . . . . . . . . . . . . . . . . Self-Inflicted Damage 357 | . . 114 13 38 32 53 . . . . . 100 7 . . Shots 7 | . . 1 . 1 1 2 . . . . . 2 . . . Rammed 6 | . . . 1 1 1 . . . . 1 . . 2 . . Targets Rammed 6 | . . . 1 1 1 . . . . 1 . . 2 . . Kicked . | . . . . . . . . . . . . . . . . Crushed . | . . . . . . . . . . . . . . . . Highest Temperature 437 | . 52 77 117 206 353 308 48 183 176 437 201 360 255 208 177 Average Temperature 67 | . 18 24 10 71 117 104 18 62 45 93 53 95 45 51 115 Received Heat Transfer 4352 | . 186 283 335 270 308 138 65 150 19 384 506 216 1150 315 27 Effects 7 | . . . . . 1 2 . . . 1 . 3 . . . Energy Bleed 2 | . . . . . 1 . . . . 1 . . . . . Interference 5 | . . . . . . 2 . . . . . 3 . . . Siege Activations 3 | . . . . . . . . . . 1 . . . 2 . Total Turns 90 | . . . . . . . . . . 29 . . . 61 . Longest Duration 53 | . . . . . . . . . . 29 . . . 53 . Martial Activations . | . . . . . . . . . . . . . . . . Shielding Activations . | . . . . . . . . . . . . . . . . Robots Disrupted . | . . . . . . . . . . . . . . . . Combat Hostiles . | . . . . . . . . . . . . . . . . Robots Corrupted 3 | . . . . . . . . 3 . . . . . . . Combat Hostiles 1 | . . . . . . . . 1 . . . . . . . Parts Fried 2 | . . . . . . . . 2 . . . . . . . Impact Corruptions 6 | . . . 1 . . . . 4 . . . 1 . . . Robots Melted 2 | . . . . . . . . . . . . 1 1 . . Combat Hostiles 2 | . . . . . . . . . . . . 1 1 . . Parts Melted 26 | . . 1 . 1 5 3 . . . 1 8 2 5 . . Heat Transferred 15301 | . 175 629 481 666 2220 962 444 1036 148 1756 3506 500 1503 1275 . Parts Sabotaged . | . . . . . . . . . . . . . . . . Parts Stolen . | . . . . . . . . . . . . . . . . Parts Stripped . | . . . . . . . . . . . . . . . . Power Chain Reactions . | . . . . . . . . . . . . . . . . Alert | -11 -10 -9 -8 -8 -8 -8 -7 -7 -7 -7 -6 -5 -5 -5 -5 ------- Run | Yrd Mat Mat Mat Gar Mat Gar Fac Gar Fac Gar Fac Fac Ext Cet Arc Maximum Alert Level 4 | . . 2 . 4 3 3 2 3 1 3 3 3 1 . . Low Security (%) 40 | 100 100 49 100 10 . . 18 5 41 22 . 1 66 100 100 Level 1 21 | . . 25 . 8 . 27 44 32 58 26 . 84 33 . . Level 2 22 | . . 24 . 13 97 48 36 55 . 23 72 . . . . Level 3 10 | . . . . 26 2 24 . 7 . 27 27 12 . . . Level 4 5 | . . . . 41 . . . . . . . . . . . Level 5 . | . . . . . . . . . . . . . . . . High Security . | . . . . . . . . . . . . . . . . Max Security . | . . . . . . . . . . . . . . . . Peak Influence 1437 | 5 171 479 177 1437 700 782 460 744 390 1053 740 760 380 164 75 Initial 700 | . . . 177 98 700 284 410 122 390 21 552 356 360 164 . Average 348 | 1 44 231 82 826 534 541 341 445 206 438 613 327 122 25 22 Influence Increases 8860 | 20 393 833 465 1359 287 538 185 662 71 1192 862 754 982 182 75 Destroy 0b10 Robot/C 4780 | . 240 480 320 720 200 360 140 300 40 600 480 160 580 160 . Destroy 0b10 Robot/NC 295 | 20 25 80 10 . 20 . . 5 . . 35 35 55 10 . Destroy Leader 684 | . 56 122 94 20 52 20 30 10 20 50 112 54 44 . . Allied During Kill 77 | . . . . . . . . 3 . 4 4 . 66 . . Successful Hack 111 | . 9 2 7 . 5 . 14 14 4 14 . 22 20 . . Disable Machine 600 | . . 15 15 60 . . . 90 . . . 345 75 . . Anti-Garrison Action 1100 | . . . . 450 . 100 . 200 . 350 . . . . . Destroy Structure 553 | . 3 59 4 109 10 58 1 40 7 39 21 138 52 12 . Lose Combat Pursuer 660 | . 60 75 15 . . . . . . 135 210 . 90 . 75 Influence Decreases 8795 | 20 393 412 734 74 1287 193 792 93 785 169 1187 746 1424 476 10 Entered New Map 3355 | . . . 244 54 737 153 372 53 354 9 501 372 376 130 . Time Decay 3164 | 20 257 392 347 . 230 . 270 . 156 . 506 334 448 194 10 Lost Part 732 | . 10 10 20 20 20 40 . . . 60 170 40 190 152 . Lost Ally 420 | . . 10 . . . . . 40 . 100 10 . 260 . . Purge Threat 1124 | . 126 . 123 . 300 . 150 . 275 . . . 150 . . Squads Dispatched 25 | . 2 2 4 . 4 . 1 . 2 . 3 6 1 . . Investigation 4 | . 1 . 1 . 1 . . . 1 . . . . . . Extermination 4 | . . . . . . . . . 1 . 2 1 . . . Reinforcement 9 | . 1 1 1 . 2 . 1 . . . . 2 1 . . Assault 2 | . . 1 . . . . . . . . 1 . . . . Garrison 6 | . . . 2 . 1 . . . . . . 3 . . . Intercept . | . . . . . . . . . . . . . . . . Searches Triggered . | . . . . . . . . . . . . . . . . Construction Impeded 1 | . . . . . . . . . . . . . 1 . . Haulers Reinforced . | . . . . . . . . . . . . . . . . Active Scanning Responses . | . . . . . . . . . . . . . . . . Cargo Convoy Interrupts 1 | . . . . . . . . . . . 1 . . . . Stealth | -11 -10 -9 -8 -8 -8 -8 -7 -7 -7 -7 -6 -5 -5 -5 -5 --------- Run | Yrd Mat Mat Mat Gar Mat Gar Fac Gar Fac Gar Fac Fac Ext Cet Arc Distress Signals 15 | . 2 4 2 . 2 . . . . . . . 3 2 . Communications Jammed 24 | . . . . . . . . . . . 24 . . . . Distress Signals 24 | . . . . . . . . . . . 24 . . . . Times Spotted 348 | . 18 37 25 30 15 17 7 19 5 40 53 15 49 10 8 Peak Tracking Total 13 | . 4 8 5 4 4 7 3 3 3 6 13 4 10 5 10 Tactical Retreats 25 | . 2 4 1 . . . . . . 5 8 . 4 . 1 Traps | -11 -10 -9 -8 -8 -8 -8 -7 -7 -7 -7 -6 -5 -5 -5 -5 ------- Run | Yrd Mat Mat Mat Gar Mat Gar Fac Gar Fac Gar Fac Fac Ext Cet Arc Traps Triggered 24 | . 2 . . 9 1 2 . . . 5 1 . 4 . . Indirectly . | . . . . . . . . . . . . . . . . Trap Hack Attempts . | . . . . . . . . . . . . . . . . Triggered . | . . . . . . . . . . . . . . . . Disarmed . | . . . . . . . . . . . . . . . . Reprogrammed . | . . . . . . . . . . . . . . . . Reused . | . . . . . . . . . . . . . . . . Traps Extracted . | . . . . . . . . . . . . . . . . Installed . | . . . . . . . . . . . . . . . . Triggered . | . . . . . . . . . . . . . . . . Machines | -11 -10 -9 -8 -8 -8 -8 -7 -7 -7 -7 -6 -5 -5 -5 -5 ---------- Run | Yrd Mat Mat Mat Gar Mat Gar Fac Gar Fac Gar Fac Fac Ext Cet Arc Machines Disabled 54 | . . 1 1 7 . 2 . 8 . 5 . 23 7 . . Max in Single Turn 6 | . . 1 1 2 . 1 . 1 . 1 . 6 3 . . Garrison Relay 12 | . . . . 3 . 2 . 2 . 5 . . . . . Energy Cycler 2 | . . . . . . . . . . . . . 2 . . Machines Repaired . | . . . . . . . . . . . . . . . . Machines Dismantled . | . . . . . . . . . . . . . . . . Machines Sabotaged . | . . . . . . . . . . . . . . . . Overloaded Fab Kills . | . . . . . . . . . . . . . . . . Hacking | -11 -10 -9 -8 -8 -8 -8 -7 -7 -7 -7 -6 -5 -5 -5 -5 --------- Run | Yrd Mat Mat Mat Gar Mat Gar Fac Gar Fac Gar Fac Fac Ext Cet Arc Machines Accessed 54 | . 8 6 7 2 5 . 3 1 3 2 3 5 9 . . Terminals 38 | . 6 4 5 2 4 . 2 1 1 2 . 3 8 . . Fabricators 2 | . . . . . . . . . 1 . 1 . . . . Repair Stations 4 | . 1 1 1 . . . . . . . 1 . . . . Recycling Units 6 | . 1 1 . . . . . . . . 1 2 1 . . Scanalyzers . | . . . . . . . . . . . . . . . . Garrison Access 4 | . . . 1 . 1 . 1 . 1 . . . . . . Total Hacks 145 | . 26 18 23 5 14 . 10 3 5 3 7 9 22 . . Successful 52 | . 9 7 8 . 6 . 2 1 3 1 2 4 9 . . Failed 93 | . 17 11 15 5 8 . 8 2 2 2 5 5 13 . . Catastrophic 23 | . 4 1 4 2 1 . 1 1 1 1 . 3 4 . . Database Lockouts . | . . . . . . . . . . . . . . . . Manual 65 | . 19 10 8 1 12 . 3 . 1 1 1 5 4 . . Terminals 106 | . 18 10 16 5 13 . 9 3 1 3 . 7 21 . . Fabricators 4 | . . . . . . . . . 3 . 1 . . . . Repair Stations 21 | . 4 7 6 . . . . . . . 4 . . . . Recycling Units 10 | . 4 1 . . . . . . . . 2 2 1 . . Scanalyzers . | . . . . . . . . . . . . . . . . Garrison Access 4 | . . . 1 . 1 . 1 . 1 . . . . . . Terminal Hacks 20 | . 2 . 3 . 4 . . 1 . 1 . 1 8 . . Part Schematic 2 | . 1 . . . 1 . . . . . . . . . . Robot Analysis 1 | . . . . . . . . . . . . . 1 . . Prototype ID Bank 3 | . . . 1 . . . . . . . . . 2 . . Open Door 2 | . . . . . . . . . . . . . 2 . . Branch Access Points 1 | . . . 1 . . . . . . . . . . . . Emergency Access Points 1 | . . . . . . . . . . 1 . . . . . Unreport Threat 5 | . 1 . 1 . 2 . . . . . . . 1 . . Locate Traps 2 | . . . . . . . . . . . . . 2 . . Hauler Manifests 1 | . . . . . 1 . . . . . . . . . . Zone Layout 1 | . . . . . . . . . . . . 1 . . . Garrison Registry 1 | . . . . . . . . 1 . . . . . . . Fabricator Hacks 2 | . . . . . . . . . 2 . . . . . . Load Schematic 1 | . . . . . . . . . 1 . . . . . . Build 1 | . . . . . . . . . 1 . . . . . . Repair Station Hacks 13 | . 3 5 3 . . . . . . . 2 . . . . Scan Component 8 | . 2 3 2 . . . . . . . 1 . . . . Repair 5 | . 1 2 1 . . . . . . . 1 . . . . Recycling Unit Hacks 3 | . 1 . . . . . . . . . . 1 1 . . Retrieve Components 3 | . 1 . . . . . . . . . . 1 1 . . Scanalyzer . | . . . . . . . . . . . . . . . . Garrison Access Hacks 4 | . . . 1 . 1 . 1 . 1 . . . . . . Unlock Access 4 | . . . 1 . 1 . 1 . 1 . . . . . . Unauthorized Hacks 10 | . 3 2 1 . 1 . 1 . . . . 2 . . . Terminals 9 | . 2 2 1 . 1 . 1 . . . . 2 . . . Assimilate 1 | . . 1 . . . . . . . . . . . . . Botnet 8 | . 2 1 1 . 1 . 1 . . . . 2 . . . Fabricators . | . . . . . . . . . . . . . . . . Repair Stations . | . . . . . . . . . . . . . . . . Recycling Units 1 | . 1 . . . . . . . . . . . . . . Recyclers 1 | . 1 . . . . . . . . . . . . . . Scanalyzers . | . . . . . . . . . . . . . . . . Garrison Access . | . . . . . . . . . . . . . . . . Data Cores Recovered . | . . . . . . . . . . . . . . . . Used . | . . . . . . . . . . . . . . . . Hacking Detections 50 | . 8 6 6 2 5 . 2 1 3 2 3 5 7 . . Full Trace Events 3 | . 1 . 1 . . . . . 1 . . . . . . Feedback Events 1 | . . . . . . . . . 1 . . . . . . Corruption 1 | . . . . . . . . . 1 . . . . . . Feedback Blocked . | . . . . . . . . . . . . . . . . Robot Schematics Acquired . | . . . . . . . . . . . . . . . . Robots Built . | . . . . . . . . . . . . . . . . Authchips . | . . . . . . . . . . . . . . . . Time . | . . . . . . . . . . . . . . . . Total Robot Build Rating . | . . . . . . . . . . . . . . . . Part Schematics Acquired 2 | . 1 . . . 1 . . . . . . . . . . Parts Built 1 | . . . . . . . . . 1 . . . . . . Authchips . | . . . . . . . . . . . . . . . . Time 106 | . . . . . . . . . 106 . . . . . . Total Part Build Rating 6 | . . . . . . . . . 6 . . . . . . Parts Repaired 5 | . 1 2 1 . . . . . . . 1 . . . . Time 228 | . 44 90 38 . . . . . . . 56 . . . . Parts Recycled . | . . . . . . . . . . . . . . . . Recycled Matter . | . . . . . . . . . . . . . . . . Retrieved Matter . | . . . . . . . . . . . . . . . . Retrieved Components 6 | . 3 . . . . . . . . . . 3 . . . Parts Scanalyzed . | . . . . . . . . . . . . . . . . Part Schematics Acquired . | . . . . . . . . . . . . . . . . Parts Damaged . | . . . . . . . . . . . . . . . . Bothacking | -11 -10 -9 -8 -8 -8 -8 -7 -7 -7 -7 -6 -5 -5 -5 -5 ------------ Run | Yrd Mat Mat Mat Gar Mat Gar Fac Gar Fac Gar Fac Fac Ext Cet Arc Used RIF Installer 4 | . . . . 1 . 1 . 1 . 1 . . . . . Coupler Efficiency 1 | . . . . . . 1 . . . . . . . . . Signal Jammer 1 | . . . . . . . . . . 1 . . . . . Program Shield 1 | . . . . . . . . 1 . . . . . . . Robots Hacked 24 | . . . . . . . 1 6 1 9 7 . . . . Non-combat 4 | . . . . . . . 1 . 1 . 2 . . . . Combat 20 | . . . . . . . . 6 . 9 5 . . . . Robot Hacks Applied 29 | . . . . . . . 3 6 4 9 7 . . . . check_alert 1 | . . . . . . . 1 . . . . . . . . purge_threat 3 | . . . . . . . 1 . 2 . . . . . . block_reporting 1 | . . . . . . . . . 1 . . . . . . emergency_deploy 1 | . . . . . . . . . . . 1 . . . . amplify_resonance 5 | . . . . . . . . . . 2 3 . . . . reboot_system 1 | . . . . . . . . 1 . . . . . . . go_dormant 1 | . . . . . . . . . . 1 . . . . . overwrite_iff 11 | . . . . . . . . 5 . 4 2 . . . . formatsys_low 3 | . . . . . . . 1 . 1 . 1 . . . . formatsys_high 2 | . . . . . . . . . . 2 . . . . . Relay Couplers Released 52 | . . . . 11 . 9 . 10 . 22 . . . . . Machine Destruction 52 | . . . . 11 . 9 . 10 . 22 . . . . . Attached 11 | . . . . . . . 1 2 1 4 3 . . . . Fabnet Peak Effective % . | . . . . . . . . . . . . . . . . Robots Rewired 9 | . . . . . . . . . . . . . 9 . . Allies Hacked . | . . . . . . . . . . . . . . . . Hacks Repelled . | . . . . . . . . . . . . . . . . Allies | -11 -10 -9 -8 -8 -8 -8 -7 -7 -7 -7 -6 -5 -5 -5 -5 -------- Run | Yrd Mat Mat Mat Gar Mat Gar Fac Gar Fac Gar Fac Fac Ext Cet Arc Total Allies 30 | . . 1 . . . . 1 5 1 6 3 . 13 . . Largest Group 8 | . . 1 . . . . 1 2 1 1 1 . 8 . . Highest-Rated Group 232 | . . 10 . . . . 26 42 26 32 35 . 232 . . Highest-Rated Ally 39 | . . 10 . . . . 26 26 26 32 35 . 39 . . Total Orders . | . . . . . . . . . . . . . . . . Ally Attacks 86 | . . . . . . . . 14 . 16 6 . 50 . . Total Damage 1484 | . . . . . . . . 211 . 272 71 . 930 . . Kills 13 | . . . . . . . . 3 . 1 1 . 8 . . Allies Corrupted 1 | . . . . . . . . 1 . . . . . . . Allies Melted . | . . . . . . . . . . . . . . . . Intel | -11 -10 -9 -8 -8 -8 -8 -7 -7 -7 -7 -6 -5 -5 -5 -5 ------- Run | Yrd Mat Mat Mat Gar Mat Gar Fac Gar Fac Gar Fac Fac Ext Cet Arc Active Infowar (turns) 4888 | 110 884 107 384 . . . . . . . 2 606 2201 594 . Sensors 2378 | . . . . . . . . . . . . 183 2195 . . Terrain 43 | . 43 . . . . . . . . . . . . . . Seismic 1869 | 110 841 107 384 . . . . . . . 2 425 . . . Machine Analysis 99 | . . . . . . . . . . . . 99 . . . Jamming 1031 | . . . . . . . . . . . . . 437 594 . Robot Analysis Total 1 | . . . . . . . . . . . . . 1 . . Derelict Logs Recovered . | . . . . . . . . . . . . . . . . Drone Launches . | . . . . . . . . . . . . . . . . Drone Recoveries . | . . . . . . . . . . . . . . . . Exploration | -11 -10 -9 -8 -8 -8 -8 -7 -7 -7 -7 -6 -5 -5 -5 -5 ------------- Run | Yrd Mat Mat Mat Gar Mat Gar Fac Gar Fac Gar Fac Fac Ext Cet Arc Turns Passed 16720 | 224 1303 1251 997 2173 498 561 586 1299 383 1689 1371 746 2715 829 95 Spaces Moved 8041 | 146 652 537 422 1098 195 246 312 635 210 767 673 697 1081 311 59 Core 442 | 28 . . . . . . . . . . 141 273 . . . Treads 4073 | . 146 537 330 21 59 54 312 635 12 734 184 . 740 250 59 Legs 629 | 118 506 . . . . . . . . . . . 5 . . Wheels 2458 | . . . 92 1077 136 192 . . 198 33 348 . 321 61 . Hover 439 | . . . . . . . . . . . . 424 15 . . Flight . | . . . . . . . . . . . . . . . . Fastest Speed 50 | 50 120 160 160 150 150 150 160 160 140 140 50 50 66 130 160 Average Speed 155 | 106 128 160 162 165 170 162 160 160 146 167 142 79 192 200 160 Slowest Speed 400 | 120 160 160 165 245 400 165 160 160 320 240 240 160 400 240 160 Overloaded Moves . | . . . . . . . . . . . . . . . . Propulsion Burnouts . | . . . . . . . . . . . . . . . . Robots Hopped . | . . . . . . . . . . . . . . . . Potential Cave-ins 4 | . . . . . . . . . . . . 4 . . . Cave-ins Triggered . | . . . . . . . . . . . . . . . . Exploration Rate (%) 45 | 6 78 55 48 71 23 35 6 73 6 72 18 16 88 64 69 Regions Visited 15 Branch Regions 3 Pre-discovered Areas . | . . . . . . . . . . . . . . . . Known Exits Taken 7 | . . . 1 . 1 . 1 . 1 . . 1 1 1 . Unknown Exits Taken 4 | 1 1 1 . . . . . . . . 1 . . . . Scrap Searched . | . . . . . . . . . . . . . . . . Spaces Dug 73 | . 2 6 1 10 . 17 . . 7 8 5 17 . . . Terrain Destroyed 306 | . 2 62 1 26 8 48 . . 7 12 15 72 30 23 . Melee 34 | . 2 . 1 10 . . . . 7 . 5 9 . . . Projectile 77 | . . . . 2 1 . . . . 1 10 23 17 23 . AOE 195 | . . 62 . 14 7 48 . . . 11 . 40 13 . . Terrain Rammed . | . . . . . . . . . . . . . . . . Walls Destroyed . | . . . . . . . . . . . . . . . . Machines Disabled . | . . . . . . . . . . . . . . . . Actions | -11 -10 -9 -8 -8 -8 -8 -7 -7 -7 -7 -6 -5 -5 -5 -5 --------- Run | Yrd Mat Mat Mat Gar Mat Gar Fac Gar Fac Gar Fac Fac Ext Cet Arc Total 10739 | 183 1022 809 621 1285 293 336 366 798 258 1012 922 808 1521 446 59 Wait 881 | 1 261 142 104 32 31 3 13 50 6 71 71 17 47 32 . Move 8030 | 145 651 536 422 1097 195 245 311 634 210 766 672 696 1081 310 59 Hop . | . . . . . . . . . . . . . . . . Pick Up 173 | 10 13 16 8 8 4 8 3 12 7 18 16 7 25 18 . Fast Attach 129 | 7 6 8 6 7 7 4 4 1 3 5 18 12 31 10 . Attach 72 | . 2 2 2 3 3 6 1 2 1 12 8 5 12 13 . Detach 58 | . . 1 1 2 1 2 2 3 2 9 6 8 14 7 . Swap 163 | . 12 16 15 21 8 9 7 16 5 20 18 2 9 5 . Drop 190 | 2 19 23 13 17 13 6 7 11 6 12 27 . 25 9 . Fire 721 | 18 56 65 47 47 29 37 18 51 11 84 81 47 88 42 . Melee 102 | . 2 . 2 29 1 . . 17 7 6 5 14 19 . . Ram 1 | . . . 1 . . . . . . . . . . . . Kick . | . . . . . . . . . . . . . . . . Crush 4 | . . . . 1 1 . . . . 1 . . 1 . . Escape Stasis 68 | . . . . 21 . 16 . . . 7 . . 24 . . Rewire 147 | . . . . . . . . 1 . 1 . . 145 . . Trap . | . . . . . . . . . . . . . . . . Miscellaneous . | . . . . . . . . . . . . . . . . Route ------- -11/Scrapyard -10/Materials (discovered 4 exits: *Mat x3 / [*Min]) -9/Materials (discovered 3 exits: *Mat x2 / [*Min]) -8/Materials -8/Garrison (discovered 3 exits: *Mat x3) -8/Materials -8/Garrison -7/Factory (discovered 2 exits: [*Sto] / Gar) -7/Garrison (discovered 3 exits: *Fac x3) -7/Factory -7/Garrison (discovered 3 exits: *Fac x3) -6/Factory -5/Factory -5/Extension (discovered 2 exits: [*Fac] / *Cet) -5/Cetus (discovered 3 exits: [*Fac x2] / *Arc) -5/Archives (discovered 1 exit: *Hub) History --------- Turn | Location | Event 5 | -11/Scrapyard | Discovered new exit (range 16) 225 | -11/Scrapyard | Entered Materials 312 | -10/Materials | Build established: Mutant 781 | -10/Materials | Discovered new exit (range 5) 1002 | -10/Materials | Discovered new exit (range 6) 1178 | -10/Materials | Discovered new exit (range 9) 1330 | -10/Materials | Repaired Broken Autogun 1520 | -10/Materials | Discovered new exit (range 5) 1528 | -10/Materials | Entered another Materials area 1528 | -9/Materials | Evolved 2 slots: Propulsion x1, Weapon x1 1850 | -9/Materials | Build established: Gunner 2025 | -9/Materials | Discovered new exit (range 16) 2224 | -9/Materials | Discovered new exit (range 16) 2262 | -9/Materials | Destroyed 7 combat bots 2633 | -9/Materials | Build established: Scavenger-Tank 2692 | -9/Materials | Repaired Lgt. Treads 2728 | -9/Materials | First assault squad dispatched 2757 | -9/Materials | Repaired Broken Imp. Assault Rifle 2763 | -9/Materials | Discovered new exit (range 11) 2779 | -9/Materials | Entered another Materials area 2779 | -8/Materials | Evolved 2 slots: Utility x2 3017 | -8/Materials | Repaired Hardlight Generator 3562 | -8/Materials | Garrison activated, responded to threat 3570 | -8/Materials | Build established: Tank 3737 | -8/Materials | Garrison activated, responded to threat 3776 | -8/Materials | Identified exit to Garrison 3776 | -8/Materials | Entered Garrison 3932 | -8/Garrison | Triggered checkpoint 4031 | -8/Garrison | Garrison Relay disabled 4082 | -8/Garrison | Triggered checkpoint 4224 | -8/Garrison | Triggered checkpoint 4331 | -8/Garrison | Discovered new exit (range 14) 4427 | -8/Garrison | Triggered checkpoint 4430 | -8/Garrison | Triggered checkpoint 4454 | -8/Garrison | Destroyed 8 combat bots 4475 | -8/Garrison | Triggered checkpoint 4529 | -8/Garrison | Build established: Scavenger-Gunner 4665 | -8/Garrison | Discovered new exit (range 11) 4710 | -8/Garrison | Triggered checkpoint 5032 | -8/Garrison | Triggered checkpoint 5089 | -8/Garrison | Discovered new exit (range 8) 5181 | -8/Garrison | Garrison Relay disabled 5397 | -8/Garrison | Build established: Scavenger-Mutant 5816 | -8/Garrison | Installed Relay Interface Framework 5864 | -8/Garrison | Garrison Relay disabled 5949 | -8/Garrison | Entered Materials 6286 | -8/Materials | Core integrity fell below 50% 6350 | -8/Materials | Garrison activated, responded to threat 6447 | -8/Materials | Identified exit to Garrison 6447 | -8/Materials | Entered Garrison 6465 | -8/Garrison | Expanded RIF knowledge: Coupler Efficiency 6526 | -8/Garrison | Build established: Scavenger-Gunner 6593 | -8/Garrison | Triggered checkpoint 6683 | -8/Garrison | Triggered checkpoint 6731 | -8/Garrison | Lost 3 parts (2n1u) 6736 | -8/Garrison | Destroyed 7 combat bots 6808 | -8/Garrison | Discovered new exit (range 9) 6847 | -8/Garrison | Triggered checkpoint 6871 | -8/Garrison | Garrison Relay disabled 7008 | -8/Garrison | Entered Factory 7008 | -7/Factory | Evolved 2 slots: Propulsion x1, Utility x1 7390 | -7/Factory | Discovered new exit (range 16) 7571 | -7/Factory | Identified exit to Garrison 7594 | -7/Factory | Entered Garrison 7594 | -7/Garrison | Accompanied by 1 ally 7617 | -7/Garrison | Triggered checkpoint 7723 | -7/Garrison | Garrison Relay disabled 8045 | -7/Garrison | Triggered checkpoint 8052 | -7/Garrison | Triggered checkpoint 8075 | -7/Garrison | P-60 Hacker assimilated allied Administrator 4a 8114 | -7/Garrison | Triggered checkpoint 8192 | -7/Garrison | Discovered new exit (range 9) 8211 | -7/Garrison | Discovered new exit (range 62) 8211 | -7/Garrison | Discovered new exit (range 6) 8211 | -7/Garrison | Discovered new exit (range 75) 8461 | -7/Garrison | Expanded RIF knowledge: Program Shield 8505 | -7/Garrison | Triggered checkpoint 8545 | -7/Garrison | Garrison Relay disabled 8893 | -7/Garrison | Entered Factory 8955 | -7/Factory | Build established: Bothacker-Mutant 9201 | -7/Factory | Fabricated Hvy. Treads (x1) 9276 | -7/Factory | Identified exit to Garrison 9276 | -7/Factory | Entered Garrison 9283 | -7/Garrison | Triggered checkpoint 9597 | -7/Garrison | Triggered checkpoint 9614 | -7/Garrison | Triggered checkpoint 9743 | -7/Garrison | Discovered new exit (range 12) 9818 | -7/Garrison | Triggered checkpoint 9896 | -7/Garrison | Build established: Scavenger-Tank 10057 | -7/Garrison | Lost 3 parts (1p1n1w) 10071 | -7/Garrison | Garrison Relay disabled 10100 | -7/Garrison | Garrison Relay disabled 10342 | -7/Garrison | Discovered new exit (range 12) 10356 | -7/Garrison | Triggered checkpoint 10401 | -7/Garrison | Build established: Bothacker-Tank 10443 | -7/Garrison | Garrison Relay disabled 10461 | -7/Garrison | Garrison Relay disabled 10549 | -7/Garrison | Triggered checkpoint 10596 | -7/Garrison | Triggered checkpoint 10645 | -7/Garrison | Lost 3 allies 10687 | -7/Garrison | Expanded RIF knowledge: Signal Jamming 10708 | -7/Garrison | Garrison Relay disabled 10875 | -7/Garrison | Destroyed 7 combat bots 10932 | -7/Garrison | Discovered new exit (range 13) 10965 | -7/Garrison | Entered Factory 10965 | -6/Factory | Evolved 2 slots: Utility x2 11215 | -6/Factory | Discovered new exit (range 10) 11315 | -6/Factory | First assault squad dispatched 11330 | -6/Factory | Repaired Hvy. Treads 12007 | -6/Factory | Build established: Bothacker-Gunner 12071 | -6/Factory | Spotted B-75 Beast 12094 | -6/Factory | Destroyed B-75 Beast 12247 | -6/Factory | Cargo convoy interrupted 12262 | -6/Factory | Core integrity fell below 50% 12297 | -6/Factory | Lost 11 parts (1p3n4u3w) 12329 | -6/Factory | Core integrity fell below 20% 12336 | -6/Factory | Entered another Factory area 12336 | -5/Factory | Evolved 2 slots: Power x1, Utility x1 12558 | -5/Factory | Build established: Mutant 12700 | -5/Factory | Discovered new exit (range 7) 13082 | -5/Factory | Identified exit to Extension 13082 | -5/Factory | Entered Extension 13436 | -5/Extension | Lost 4 parts (2n2u) 13725 | -5/Extension | Build established: Scavenger-Skirmisher 14089 | -5/Extension | Rescued a captive Derelict 14090 | -5/Extension | Rescued a captive Derelict 14703 | -5/Extension | Spotted B-75 Beast 14721 | -5/Extension | Allies destroyed B-75 Beast 14730 | -5/Extension | Spotted B-75 Beast 14748 | -5/Extension | Core integrity fell below 50% 14755 | -5/Extension | Destroyed B-75 Beast 14773 | -5/Extension | Lost 8 allies 14813 | -5/Extension | Lost 4 parts (1p2n1u) 14882 | -5/Extension | Disrupted transfer network 14892 | -5/Extension | Lost 4 parts (1p2n1u) 14950 | -5/Extension | Rescued a captive Derelict 14951 | -5/Extension | Rescued a captive Derelict 15127 | -5/Extension | Energy Cycler disabled 15127 | -5/Extension | Rescued a captive Derelict 15130 | -5/Extension | Rescued a captive Derelict 15156 | -5/Extension | Build established: Scavenger-Gunner 15459 | -5/Extension | Lost 3 allies 15660 | -5/Extension | Build established: Scavenger-Skirmisher 15782 | -5/Extension | Discovered new exit (range 10) 15784 | -5/Extension | Discovered new exit (range 6) 15795 | -5/Extension | Disrupted transfer network 15795 | -5/Extension | Identified exit to Cetus 15797 | -5/Extension | Entered Cetus 15815 | -5/Cetus | Spotted Cetus Guard 15815 | -5/Cetus | Spotted Cetus Guard 15820 | -5/Cetus | Spotted Cetus Guard 15838 | -5/Cetus | Core integrity fell below 20% 15841 | -5/Cetus | Destroyed Cetus Guard 15841 | -5/Cetus | Spotted Cetus Guard 15853 | -5/Cetus | Destroyed Cetus Guard 15859 | -5/Cetus | Destroyed Cetus Guard 15871 | -5/Cetus | Destroyed Cetus Guard 15897 | -5/Cetus | Lost 13 parts (3p4n3u3w) 16097 | -5/Cetus | Discovered new exit (range 15) 16204 | -5/Cetus | Build established: Scavenger-Tank 16277 | -5/Cetus | Discovered new exit (range 16) 16321 | -5/Cetus | Spotted Cetus Guard 16322 | -5/Cetus | Spotted Cetus Guard 16379 | -5/Cetus | Spotted Cetus Guard 16384 | -5/Cetus | Spotted Cetus Guard 16393 | -5/Cetus | Destroyed Cetus Guard 16398 | -5/Cetus | System corruption reached 10% 16404 | -5/Cetus | Destroyed Cetus Guard 16414 | -5/Cetus | Destroyed Cetus Guard 16437 | -5/Cetus | Destroyed Cetus Guard 16448 | -5/Cetus | Lost 5 parts (2p1n2u) 16538 | -5/Cetus | Discovered new exit (range 15) 16547 | -5/Cetus | Security sweep announced 16550 | -5/Cetus | Met Revision 17 16624 | -5/Cetus | Identified exit to Archives 16626 | -5/Cetus | Entered Archives 16650 | -5/Archives | Met Zhirov 16656 | -5/Archives | Reinforcements dispatched to Archives 16678 | -5/Archives | Discovered new exit (range 15) 16700 | -5/Archives | Identified exit to Hub_04(d) 16701 | -5/Archives | Reinforcements dispatched to Archives 16721 | -5/Archives | Zhirov detonated Archives 16721 | -5/Archives | Core destroyed Last Messages --------------- area. 16656_ Zhirov: "We don't have time to finish the decryption and erase our tracks, I'm jamming their communications! Perun, Svarog, let none of them escape!" 16675_ G-50 Soldier destroyed. 16678_ EXIT=FOUND 16679_ G-50 Soldier held in stasis. 16679_ G-50 Soldier destroyed. 16681_ Archive Hub disabled. 16700_ EXIT=IDENTIFIED: HUB_04(D) 16701_ ALERT: Multiple hostiles detected in Archives area, dispatching reinforcements. 16706_ System corrupted: Heat flow error (+233). 16720_ G-50 Soldier misfires. 16721_ Archive Hub disabled. 16721_ Archive Terminal disabled. 16721_ O-32 Director destroyed. 16721_ G-50 Soldier destroyed. 16721_ O-32 Director destroyed. Map ----- +----------------------------------------------------+ | ????????????????????????????????????????????? | | ??????????????????????????? #??????????????? | | ??????????????????????????? #??????????????? | | ??????????????????????????? #??????????????? | | ??????????????????????????? #??????????????? | | ?????????????????????????? #??????????????? | | ?????????????????????????? #??????????????? | | ???????????????????"""" ?? #??????????????? | | ?????????????????###"#"### #??????????????? | | ?????????????????#"""""""# #??????????????? | | ?????????????????#"""V"""# #??????????????? | | ?????????????????#"""o"" #% #??????????????? | | ????????????????##"" " %=% ##?????????????? | | ??############### !Y[* ####??????????? | | ??# !% ""??????????? | | ??# % ""#?????????? | | ??# g= ""?????????? | | ??#####+######### "#?????????? | | ??# #"""" !%= ""?????????? | | ??# #"""" ""#?????????? | | ??# """"""" / """??????????? | | ??#"""""""""#"Vo =% #####?????????? | | ??#""""""""""""" ! ????????? | | ??#"""""""""#"""" ???????? | | ??#"""""""""#"""" ????????? | | ??????#####?##### @ ###???????? | | ????????????????## #?????????? | | ?????????????????# #?????????? | | ?????????????????# # ?????????? | | ?????????????????# # """" #???#?????????? | | ?????????????????# # " ##?????????????? | | ?????????????????# ? """"#??????????????? | | ?????????????????# #??"""" #??????????????? | | ?????????????????# #??"""""???????????????? | | ?????????????????# #???"??????????????????? | | ?????????????????# +??????????????????????? | | ?????????????????# #??????????????????????? | | ?????????????????# #??????????????????????? | | ?????????????????# > #??????????????????????? | | ?????????????????# #??????????????????????? | | ?????????????????#####??????????????????????? | | ????????????????????????????????????????????? | | ????????????????????????????????????????????? | | | | | | | | | | | | | | | +----------------------------------------------------+ Best States ------------- Heat Dissipation 78 Energy Generation 45 Energy Capacity 600 Matter Stores 300 Matter Capacity 550 Sight Range 16 Robot Scan Range 15 Terrain Scan Range 16 Terrain Scan Density 10 Jamming Range 14 Armor Coverage 900 Resistance: TH 15 Weapon Cycling 20 Evasion (%) 55 Targeting Accuracy 6 Melee Accuracy 8 Core Analysis 6 Armor Integrity Analysis 40 Recoil Reduction 4 Kinecelleration 30 Offensive Hacking 14 Defensive Hacking 10 Relay Coupler Types 3 Relay Coupler Value 66 Item Schematics ----------------- Huge Storage Unit | -10/Materials | Hacked Plasma Cutter | -8/Materials | Hacked Robot Schematics ------------------ None Fabricated ------------ Hvy. Treads | x1 | -7/Factory | Preloaded Repaired ---------- Autogun | 54% | -10/Materials | Broken Lgt. Treads | 42% | -9/Materials Imp. Assault Rifle | 43% | -9/Materials | Broken Hardlight Generator | 40% | -8/Materials Hvy. Treads | 30% | -6/Factory Alien Tech Used ----------------- None Achievements -------------- Factory Defaults Left-hand Path Challenges ------------ None Game ------ Seed DirectedDecoderShield Manual? 0 Play Time 02:16:24 Cumulative 231.2 hours Start 2025.10.13 @ 04:10:13 End 2025.10.16 @ 01:32:44 Sessions 9 Manual Loads 0 Difficulty Rogue Special Mode None Game No. 123 Rogue 123 Adventurer 0 Explorer 0 Win Type - Total 4 Types 3/0/1/0/0/0/0/0/0/0 Lore% 73 Gallery% 71 Achievement% 63 Wizard Run 0 Options --------- Layout 1 ASCII 0 Keyboard 1 Movement Numpad Keybinds 0 Fullscreen 2 Font 24/Terminus Map View 50x40 Zoom Use 0% Tactical HUD 1 Map Filters NONE Filters NONE Steam 1 RUN: 8c53b522-155a-45e0-b18b-1c99e6cf72f9